[Event "ESP-chT Honor Division 2022"]
[Site "Linares"]
[Date "2022.09.20"]
[Round "4.4"]
[White "Perez Candelario, Manuel"]
[Black "Alonso Rosell, Alvar"]
[Result "1-0"]
[ECO "C70"]
[WhiteElo "2566"]
[BlackElo "2564"]
[Annotator "TA"]
[PlyCount "117"]
[EventDate "2022.09.17"]
[EventType "team-tourn"]
[EventCountry "ESP"]
[SourceTitle "playchess.com"]
[Source "ChessBase"]
[SourceQuality "1"]
[TimeControl "5400+30"]

{[%evp 9,117,29,29,25,39,8,24,27,27,0,14,14,72,11,19,14,12,0,0,0,10,33,84,79,94,84,94,96,96,104,105,98,200,210,199,163,144,161,153,146,156,155,184,189,191,187,214,209,198,214,210,198,214,216,215,200,222,214,201,196,181,161,267,266,273,273,276,269,271,275,276,268,276,238,238,238,268,268,271,264,264,243,252,241,279,280,280,280,280,279,279,279,279,279,279,272,272,275,328,302,509,506,608,606,597,597,540,533,482,465]} 1. e4 {[%emt 0:00:03]} e5 {[%emt 0:00:04]} 2. Nf3 {[%emt 0:00:03]} Nc6 {[%emt 0:00:03]} 3. Bb5 {[%emt 0:00:03]} a6 {[%emt 0:00:04]} 4. Ba4 {[%emt 0:00:02]} g6 {[%emt 0:00:03]} 5. d4 {[%emt 0:06:46]} b5 {[%emt 0:00:29] BESTDEEP} 6. Bb3 {[%emt 0:00:19] CPLX 2.5. C70: Ruy Lopez: 3...a6 4 Ba4, Norwegian and Delayed Schliemann.} exd4 {[%emt 0:00:08] CPLX 2.4} 7. O-O $5 {[%emt 0:06:08][%mdl 4] CPLX 2.4 31 (Nf3xd4) (=16) Leaves trodden paths.} Bg7 {[%emt 0:02:37] BESTDEEP} 8. c3 {[%emt 0:06:36][%cal Rc3d4] BESTDEEP. White has an edge.} Na5 {[%emt 0:02:18]} 9. Bc2 {[%emt 0:00:15] CPLX 2.6 27 (c3xd4) (=15)} d6 {[%emt 0:11:55] CPLX 2.4 14 (d4xc3) (=3)} 10. cxd4 {[%emt 0:03:09] CPLX 2.4 0 (Bc1-g5) (=12)} (10. Bg5 {is interesting.} Ne7 11. cxd4 Bg4 12. Nc3) 10... Nf6 {[%emt 0:02:27] [#] RELBLUND 58 (Ng8-e7) (=12)} (10... Ne7 $11) 11. Nc3 $146 {[%emt 0:07:26] MISSDEEP-Qd1-e1 61 (Qd1-e1) (=20)} ({White should try} 11. Qe1 $1 $16 {And now e5 would win.} Nc4 12. a4) ({Predecessor:} 11. h3 O-O 12. Nc3 Bb7 13. Re1 Re8 14. a3 c5 15. d5 Nc4 16. Rb1 b4 17. axb4 cxb4 {1-0 (40) Martinez Alcantara,J (2598)-Selbes,T (2287) Chess.com INT 2022}) 11... O-O {[%emt 0:18:11] CPLX 2.3 8 (Bc8-b7) (=11)} 12. Re1 {[%emt 0:00:17] CPLX 2.3 5 (b2-b4) (=18)} Re8 {[%emt 0:01:59] CPLX 2.3 0 (Bc8-b7) (=10)} 13. Bg5 {[%emt 0:05:29] CPLX 2.4 12 (e4-e5) (=17)} h6 {[%emt 0:05:51] CPLX 2.9} 14. Bh4 {[%emt 0:00:04] BESTDEEP} g5 {[%emt 0:16:42] CPLX 2.9 10 (Bc8-b7) (=9)} 15. Bg3 {[%emt 0:00:04] CPLX 2.9} Bg4 {[%emt 0:02:50] CPLX 2.6 51 (Bc8-b7) (=13)} ({Black should play} 15... Bb7 $14) 16. h3 $16 {[%emt 0:07:10] CPLX 2.8} Bh5 {[%emt 0:00:48] CPLX 3.0 15 (Bg4-e6) (=13)} 17. e5 {[%emt 0:06:55] EASY} dxe5 {[%emt 0:03:17] CPLX 3.3 10 (Nf6-d7) (=13)} 18. dxe5 {[%emt 0:08:47] Strongly threatening Qxd8. RECAPT} Qxd1 {[%emt 0:03:07] CPLX 3.3} 19. Bxd1 {[%emt 0:00:23][%cal Bc2d1,Bd1f3,Bf3a8,Ba8b7,Bb7a6,Ba6c4][%mdl 32] RECAPT} ({Don't take} 19. Raxd1 Bxf3 20. gxf3 Nh5 $11) 19... Nd7 {[%emt 0:10:24] CPLX 2.4} 20. Nd5 $36 {[%emt 0:06:16][%mdl 2048] Keeping Black busy. BESTDEEP} Bxf3 {[%emt 0:12:32] CPLX 2.4 102 (Ra8-c8) (=17)} (20... Rac8 $16) 21. Bxf3 $18 {[%emt 0:00:18] RECAPT} Nxe5 {[%emt 0:00:37] BESTDEEP} 22. Bxe5 {[%emt 0:03:14] MISS-Nd5-e7 36 (Nd5-e7) (=10)} ({Inferior is} 22. Nxc7 Nxf3+ 23. gxf3 Rxe1+ 24. Rxe1 Rd8 $11) 22... Bxe5 {[%emt 0:02:07] [#] RECAPT} 23. Ne7+ {[%emt 0:00:50][%mdl 576] Discovered Attack. EASY} Rxe7 {[%emt 0:00:06] EASY} 24. Bxa8 {[%emt 0:00:02] EASY} Kf8 {[%emt 0:02:50] CPLX 2.7 10 (f7-f6) (=14)} 25. Rac1 {[%emt 0:01:07] BESTDEEP} Nc4 {[%emt 0:00:16] CPLX 2.5 29 (Kf8-e8) (=15)} 26. b3 {[%emt 0:00:37] EASY} Nb6 {[%emt 0:00:50] CPLX 2.7 2 (Nc4-d6) (=14)} 27. Bb7 {[%emt 0:00:55] CPLX 2.8} Bd6 {[%emt 0:00:47] CPLX 2.6 27 (f7-f6) (=15)} 28. Rxe7 {[%emt 0:02:21] CPLX 2.7 5 (Bb7xa6) (=8)} Kxe7 {[%emt 0:00:04] RECAPT} 29. Bxa6 {[%emt 0:00:06][%mdl 4096] Endgame KRB-KBN. EASY} b4 {[%emt 0:00:02] CPLX 2.1} 30. Re1+ {[%emt 0:00:42] CPLX 2.1} Kf6 {[%emt 0:00:17] CPLX 2.1 16 (Ke7-f8) (=14)} 31. Re8 {[%emt 0:02:50] CPLX 2.1} Nd5 {[%emt 0:00:32] CPLX 2.2 0 (Nb6-d7) (=13)} 32. Bc4 {[%emt 0:00:42] CPLX 2.1 15 (g2-g3) (=7)} Nc3 {[%emt 0:00:06] CPLX 2.4 22 (Nd5-e7) (=13)} 33. Rd8 {[%emt 0:02:33] CPLX 2.3 8 (Re8-a8) (=7)} Kg6 {[%emt 0:01:40] CPLX 2.4} 34. g4 {[%emt 0:02:09] CPLX 2.4 5 (Rd8-g8) (=7)} Nxa2 {[%emt 0:00:23] BESTDEEP} 35. Rd7 {[%emt 0:00:14] CPLX 2.5 20 (Rd8-g8) (=8)} Nc3 {[%emt 0:00:45] CPLX 2.6 106 (f7-f5) (=15)} (35... f5 $142 36. Kg2 Nc3) 36. Bxf7+ {[%emt 0:00:39] CPLX 2.8=>BLUNDERREACT} ({Much less strong is} 36. Rxf7 Ne2+ 37. Kf1 Nf4 $18) 36... Kf6 {[%emt 0:00:02] CPLX 2.5} 37. Bc4 {[%emt 0:00:13] Prevents Ne2+. CPLX 2.6} Ne4 {[%emt 0:00:27] CPLX 2.6 3 (Nc3-b1) (=15)} 38. Kg2 {[%emt 0:02:55] CPLX 2.6} Nd2 {[%emt 0:01:16] CPLX 2.6} 39. Bg8 {[%emt 0:00:37] CPLX 2.7} Ne4 {[%emt 0:00:30] BESTDEEP} 40. Kf3 {[%emt 0:04:08] BESTDEEP} Nc5 {[%emt 0:00:01] CPLX 2.8 8 (Kf6-e5) (=14)} 41. Rd8 {[%emt 0:00:39] CPLX 2.8 38 (Rd7-f7) (=7)} Nd3 {[%emt 0:00:48] [#] CPLX 2.5} 42. Bc4 $1 {[%emt 0:02:41] BESTDEEP} Ne5+ {[%emt 0:00:38] CPLX 2.7 30 (Nd3-f4) (=14)} 43. Ke4 {[%emt 0:00:28] CPLX 2.5} Ng6 {[%emt 0:00:12] BESTDEEP} 44. f3 {[%emt 0:03:30] CPLX 2.5} Ke7 {[%emt 0:00:53] CPLX 2.5 0 (Ng6-f8) (=13)} 45. Ra8 {[%emt 0:00:50] CPLX 2.8} Kf6 {[%emt 0:00:11] DEEPSTRONG} 46. Ra6 {[%emt 0:00:40] CPLX 2.4} Ne5 {[%emt 0:00:32] CPLX 2.6 38 (Kf6-e7) (=13)} 47. Ra5 {[%emt 0:00:25] BESTDEEP} Nd7 {[%emt 0:00:33] BESTDEEP} 48. Rf5+ {[%emt 0:00:39] CPLX 2.4} Kg6 {[%emt 0:00:02] EASY} 49. Kd5 {[%emt 0:01:04] CPLX 2.5 1 (Ke4-d4) (=6)} Kg7 {[%emt 0:00:42] BESTDEEP} 50. Kd4 {[%emt 0:00:55] Hoping for Rf7+. CPLX 2.4} Nf6 {[%emt 0:00:20] CPLX 2.4 0 (Kg7-g6) (=12)} 51. Be6 {[%emt 0:00:44] CPLX 2.5} Kg6 {[%emt 0:00:33] CPLX 2.5 0 (Bd6-e7) (=12)} 52. Kc4 {[%emt 0:01:31] CPLX 2.8} Be7 {[%emt 0:00:42] CPLX 2.8 0 (Kg6-g7) (=12)} 53. Kb5 {[%emt 0:00:24] BESTDEEP} Kg7 {[%emt 0:00:54] CPLX 2.7 53 (Be7-d6) (=12)} 54. f4 {[%emt 0:01:35] CPLX 2.5} Kg6 {[%emt 0:00:26] CPLX 2.7 207 (g5xf4) (=16)} (54... gxf4 55. Rxf4 Kg6) 55. fxg5 {[%emt 0:00:04] CPLX 2.9. White is clearly winning.} hxg5 {[%emt 0:00:04] CPLX 3.2 102 (Nf6-e4) (=18)} 56. Kc6 {[%emt 0:00:33] CPLX 2.6} Bd6 {[%emt 0:00:02] CPLX 2.7} 57. Bc4 {[%emt 0:00:16] CPLX 2.8} Bf4 {[%emt 0:00:37] CPLX 2.8} 58. Bd3 {[%emt 0:00:43] aiming for Rxf4+. CPLX 2.8} Kg7 {[%emt 0:00:50] CPLX 2.8} 59. Rb5 {[%emt 0:00:14] Weighted Error Value: White=0.05 (flawless) /Black=0.18 (very precise)} 1-0

[Event "ESP-chT Honor Division 2022"]
[Site "Linares"]
[Date "2022.09.20"]
[Round "4.5"]
[White "Henderson de La Fuente, Lance"]
[Black "Stefanova, Antoaneta"]
[Result "1/2-1/2"]
[ECO "D10"]
[WhiteElo "2504"]
[BlackElo "2472"]
[Annotator "TA"]
[PlyCount "65"]
[EventDate "2022.09.17"]
[EventType "team-tourn"]
[EventCountry "ESP"]
[SourceTitle "playchess.com"]
[Source "ChessBase"]
[SourceQuality "1"]
[TimeControl "5400+30"]

{[%evp 23,65,0,0,0,0,0,0,0,0,0,0,0,0,0,0,0,0,0,0,-6,0,-4,0,0,0,0,0,0,0,0,0,0,0,0,0,0,0,0,0,0,0,0,0,0]} 1. d4 {[%emt 0:00:21]} d5 {[%emt 0:00:39]} 2. c4 {[%emt 0:00:22]} c6 {[%emt 0:00:12]} 3. cxd5 {[%emt 0:00:48]} cxd5 {[%emt 0:00:06]} 4. Bf4 {[%emt 0:00:45]} Nf6 {[%emt 0:03:45]} 5. Nc3 {[%emt 0:00:23]} Nc6 {[%emt 0:03:03]} 6. e3 {[%emt 0:01:13]} Bf5 {[%emt 0:07:49]} 7. Nf3 {[%emt 0:02:32]} e6 {[%emt 0:03:42]} 8. Bb5 {[%emt 0:02:24]} Nd7 9. O-O {[%emt 0:04:05]} Be7 {[%emt 0:07:15]} 10. Ne5 {[%emt 0:12:20]} Ndxe5 {[%emt 0:04:47]} 11. Bxe5 {[%emt 0:00:26]} O-O {[%emt 0:16:39]} 12. Bxc6 {[%emt 0:08:32]} bxc6 {[%emt 0:00:05] RECAPT. The position is equal.} 13. Na4 {[%emt 0:00:05] BESTDEEP. D14: Slav Defence: Exchange variation with ...Bf5.} Qa5 {[%emt 0:00:32] CPLX 2.7} 14. Qb3 {[%emt 0:19:19] BESTDEEP} f6 {[%emt 0:03:38] CPLX 2.8} 15. Bg3 {[%emt 0:00:32] CPLX 2.8} c5 {[%emt 0:03:25] CPLX 2.5} 16. Nxc5 {[%emt 0:01:08]} Bxc5 {[%emt 0:00:10] RECAPT} 17. dxc5 {[%emt 0:00:04] RECAPT} Qxc5 {[%emt 0:00:05] [#] RECAPT} 18. Rfc1 $146 {[%emt 0:00:22] CPLX 2.3} ({Predecessor:} 18. Rac1 Qb6 19. Qxb6 axb6 20. a3 Rfc8 21. Rfd1 Bc2 22. Re1 e5 23. f3 Rc4 24. Re2 {0-1 (45) Saif,A (2040)-Wageih,K (2105) Dubai 2007}) 18... Qb6 {[%emt 0:01:17] CPLX 2.7} 19. Qxb6 {[%emt 0:10:29] BESTDEEP} axb6 {[%emt 0:00:04] RECAPT} 20. Bc7 {[%emt 0:02:13] BESTDEEP} Rfc8 {[%emt 0:04:30] EASY} 21. a3 {[%emt 0:03:37] CPLX 2.0 6 (a2-a4) (=1)} b5 {[%emt 0:01:52] CPLX 2.1 6 (e6-e5) (=1)} 22. Rc5 {[%emt 0:07:39] BESTDEEP} Ra4 {[%emt 0:11:50] CPLX 2.3 4 (Bf5-d3) (=1)} 23. b3 {[%emt 0:01:49] CPLX 2.5} Ra7 {[%emt 0:02:10] CPLX 2.7 0 (Ra4-a8) (=1)} 24. Bb6 {[%emt 0:01:20] CPLX 2.4} Rxc5 {[%emt 0:00:36] CPLX 2.6 0 (Ra7-a8) (=1)} 25. Bxc5 $11 {[%emt 0:00:06][%mdl 4096] Endgame KRB-KRB. RECAPT} Rc7 {[%emt 0:01:23] BESTDEEP} 26. Rc1 {[%emt 0:03:20] BESTDEEP} e5 {[%emt 0:05:18] CPLX 2.3 0 (Kg8-f7) (=1)} 27. Kf1 {[%emt 0:00:29] BESTDEEP} Kf7 {[%emt 0:11:14] CPLX 2.1 0 (Rc7-c8) (=1)} 28. Ke1 {[%emt 0:01:15] CPLX 2.1 0 (Kf1-e2) (=0)} Bd7 {[%emt 0:00:21] BESTDEEP} 29. Kd2 {[%emt 0:00:13] CPLX 2.0} Ke6 {[%emt 0:00:15] CPLX 2.0 0 (g7-g5) (=1)} 30. Bf8 {[%emt 0:00:41] CPLX 2.0 0 (Bc5-b4) (=0)} Rxc1 {[%emt 0:00:28] EASY} 31. Kxc1 {[%emt 0:00:07] RECAPT} g6 {[%emt 0:00:21] CPLX 2.0 0 (g7-g5) (=1)} 32. Kd2 {[%emt 0:00:20] CPLX 2.0} d4 {[%emt 0:01:33] CPLX 2.0} 33. exd4 {[%emt 0:00:21] A rather calm draw.  Weighted Error Value: White=0.00 (flawless) /Black=0.01 (flawless)} 1/2-1/2

[Event "ESP-chT Honor Division 2022"]
[Site "Linares"]
[Date "2022.09.20"]
[Round "4.6"]
[White "Garrido Outon, Alex"]
[Black "Cramling, Pia"]
[Result "0-1"]
[ECO "B46"]
[WhiteElo "2411"]
[BlackElo "2468"]
[Annotator "TA"]
[PlyCount "70"]
[EventDate "2022.09.17"]
[EventType "team-tourn"]
[EventCountry "ESP"]
[SourceTitle "playchess.com"]
[Source "ChessBase"]
[SourceQuality "1"]
[TimeControl "5400+30"]

{[%evp 9,70,21,31,13,26,15,33,36,51,36,59,25,43,35,103,110,85,94,159,115,114,114,104,116,131,109,117,112,125,118,118,116,111,114,164,158,164,158,160,156,222,130,124,119,141,87,79,65,88,70,77,70,162,0,-5,-6,0,0,0,-777,-764,-29998,-29999]} 1. e4 {[%emt 0:00:03]} c5 {[%emt 0:00:05]} 2. Nf3 {[%emt 0:00:08]} e6 {[%emt 0:00:07]} 3. d4 {[%emt 0:00:07]} cxd4 {[%emt 0:00:05]} 4. Nxd4 {[%emt 0:00:07]} Nc6 {[%emt 0:00:10]} 5. Nc3 {[%emt 0:00:09]} a6 {[%emt 0:00:17] CPLX 2.3 10 (Ng8-f6) (=10)} 6. Qd3 {[%emt 0:00:34] CPLX 2.3 18 (Bf1-e2) (=18). B46: Sicilian: Taimanov: 5 Nc3 a6.} Nxd4 $1 {[%emt 0:08:19][%mdl 4] CPLX 2.4 13 (d7-d5) (=12) is currently scoring better than 6...Qc7.} 7. Qxd4 {[%emt 0:00:09] RECAPT} Ne7 {[%emt 0:06:20] CPLX 2.2 18 (Qd8-c7) (=14)} 8. Bf4 {[%emt 0:06:19] CPLX 2.0. White is slightly better.} Nc6 {[%emt 0:05:02] [#] CPLX 2.2} 9. Qd3 $146 {[%emt 0:05:24] CPLX 2.8 15 (Qd4-d2) (=8)} ({Predecessor:} 9. Qd2 b5 10. a3 Bb7 11. Be2 Bc5 12. Bd6 Bxd6 13. Qxd6 Qb8 14. Qd2 O-O 15. Rd1 {0-1 (36) Fedoseev,V (2686)-Andreikin,D (2729) Chess.com INT 2022}) 9... b5 {[%emt 0:04:34] BESTDEEP} 10. O-O-O {[%emt 0:06:43] CPLX 2.4 34 (Bf1-e2) (=13)} Bc5 {[%emt 0:05:33] CPLX 2.8} 11. e5 {[%emt 0:03:45] CPLX 2.9 8 (Qd3-g3) (=13)} f5 {[%emt 0:08:57] Prevents Ne4. CPLX 2.8 68 (Bc8-b7) (=16)} (11... Bb7 $14) 12. exf6 $1 $16 {[%emt 0:03:14] DEEPSTRONG} Qxf6 {[%emt 0:00:09] RECAPT} 13. g3 {[%emt 0:07:45] BESTDEEP} Qe7 {[%emt 0:03:29] CPLX 3.1 65 (Qf6-g6) (=19)} (13... d5 $2 14. Nxd5 $1 {[%mdl 512]} exd5 15. Qxd5 $18) ({Better is} 13... Qg6) 14. Ne4 {[%emt 0:26:37] CPLX 2.9 44 (Bf1-g2) (=13)} d5 {[%emt 0:06:43] CPLX 3.3} 15. Nxc5 {[%emt 0:03:02] CPLX 3.0 0 (Bf4-g5) (=12)} Qxc5 {[%emt 0:00:10] RECAPT} 16. Be3 {[%emt 0:00:14] CPLX 2.7} Qe7 {[%emt 0:06:57] CPLX 2.9 15 (d5-d4) (=16)} 17. Qc3 $36 {[%emt 0:01:45][%mdl 2048] Black is under strong pressure. CPLX 2.4} Bb7 {[%emt 0:04:57][%cal Od5d4] CPLX 2.9} 18. Bh3 {[%emt 0:07:37] BESTDEEP} b4 {[%emt 0:15:59] BESTDEEP} 19. Qd2 {[%emt 0:03:48] Bg5 is the strong threat. BESTDEEP} O-O {[%emt 0:00:32][%cal Od5d4] CPLX 2.4} 20. Rhe1 {[%emt 0:00:32] And now Bg5 would win. BESTDEEP} Rfe8 {[%emt 0:03:56] BESTDEEP} 21. f4 {[%emt 0:01:34] CPLX 2.5 0 (Be3-b6) (=7)} Qd6 {[%emt 0:01:42] CPLX 2.5 50 (a6-a5) (=14)} (21... a5 $16) 22. Qf2 $18 {[%emt 0:01:27] BESTDEEP} a5 {[%emt 0:04:08] CPLX 2.5} 23. Bc5 {[%emt 0:02:45] CPLX 2.5} Qd7 {[%emt 0:00:05] EASY} 24. Qe2 {[%emt 0:02:26] CPLX 2.6 4 (Qf2-e3) (=6)} Bc8 {[%emt 0:05:42] [#] CPLX 2.7 66 (Nc6-d8) (=15)} (24... Nd8 $16 25. Bb6 Bc8) 25. Qf3 {[%emt 0:06:17] CPLX 2.6 92 (f4-f5) (=11)} (25. f5 $1 $18 {[%cal Rf5e6]} e5 26. Bg2) 25... Qf7 $16 {[%emt 0:01:46] BESTDEEP} 26. f5 {[%emt 0:04:42] BESTDEEP} Bd7 {[%emt 0:00:21] CPLX 2.9 22 (Nc6-e7) (=15)} 27. g4 {[%emt 0:01:16] CPLX 2.9 54 (Bh3-g2) (=12)} ({White should try} 27. Bg2) 27... exf5 {[%emt 0:02:46] CPLX 2.8} 28. gxf5 {[%emt 0:00:06] RECAPT} d4 {[%emt 0:01:47] CPLX 3.2 23 (Re8xe1) (=15)} 29. Rg1 {[%emt 0:04:35] Strongly threatening Rxd4. CPLX 3.4 18 (Bh3-g2) (=12)} Re3 {[%emt 0:02:04] CPLX 3.6 7 (Ra8-d8) (=14)} 30. Qg2 {[%emt 0:00:01] CPLX 4.2} Rae8 {[%emt 0:00:53] [#] CPLX 4.7 92 (Ra8-c8) (=17)} (30... Rc8 $14) 31. Bxd4 $2 {[%emt 0:00:59] MISSDEEP-Bh3-g4 162 (Bh3-g4) (=17)} ({White must play} 31. Bg4 $1 $18 {[%cal Rg4h5] Hoping for Bh5!} R8e4 32. Bf3) 31... Nxd4 $11 {[%emt 0:00:19] RECAPT} 32. Rxd4 {[%emt 0:00:02] RECAPT} Bb5 {[%emt 0:01:52] CPLX 3.7 6 (Bd7-c8) (=16)} 33. Bg4 {[%emt 0:02:05][%cal Og4h5] Black must now prevent Bh5! BESTDEEP} Qxa2 {[%emt 0:00:33] ( -> ...Re1+). CPLX 3.1} 34. Bf3 $2 {[%emt 0:00:31][%mdl 8192] RELBLUND 400 (Bg4-d1) (=29)} (34. Bd1 $11 R3e7 35. f6 (35. Qd5+ Qxd5 36. Rxd5 Re5 $17) 35... Qa1+ 36. Kd2 Qxb2 37. Qd5+ Kh8 38. fxg7+ (38. fxe7 Qc3+ 39. Kc1 Qa1+ 40. Kd2 Qc3+ 41. Kc1 Qa1+ 42. Kd2 Qc3+ $11) 38... Rxg7 39. Rxg7 Qc3+ 40. Kc1 Qa1+ 41. Kd2 Qc3+ 42. Kc1 Qa1+ 43. Kd2 Qc3+) 34... Re1+ $19 {[%emt 0:00:31] CPLX 5.5=>BLUNDERREACT} 35. Rxe1 {[%emt 0:00:31] RELBLUND 400 (Rd4-d1) (=42)} Qa1+ {[%emt 0:00:08] Weighted Error Value: White=0.54/Black=0.18 (very precise)} ({Not} 35... Rxe1+ 36. Rd1 Rxd1+ 37. Bxd1 $11) 0-1